bitfinex-derivatives/quotes_SOLF0:USTF0_20241101
["timestamp","ask_amount","ask_price","bid_price","bid_amount"]
[1730428090891,7.1662,167.67,167.59,2.9873]
[1730428091093,2.9862,167.67,167.59,2.9873]
[1730428092597,2.9862,167.67,167.57,14.36488031]
[1730428092598,2.9862,167.67,167.6,2.9872]
[1730428093301,2.9862,167.66,167.59,2.9874]
[1730428096703,2.9862,167.66,167.6,2.9873]
[1730428096903,1.3097,167.69,167.61,14.36488031]
[1730428097297,1.3097,167.69,167.59,17.35218031]
[1730428097502,2.9862,167.66,167.59,14.36488031]
[1730428097702,1.3097,167.69,167.59,14.36488031]
[1730428098404,1.3097,167.69,167.61,14.36488031]
[1730428098596,2.5323,167.72,167.62,4.16]
[1730428099004,2.9855,167.71,167.64,2.9864]
[1730428099394,2.5323,167.72,167.64,2.9864]
[1730428099605,2.9855,167.7,167.64,2.9864]
[1730428100601,2.9857,167.69,167.64,2.9864]
[1730428101299,2.9854,167.71,167.62,4.16]
[1730428101506,3.8801,167.72,167.63,14.36488031]
[1730428101812,14.36488031,167.75,167.67,2.986]
[1730428102114,14.36488031,167.75,167.63,18.32758031]
[1730428103302,2.985,167.73,167.67,2.986]
[1730428103502,14.36488031,167.75,167.63,18.32758031]
[1730428103711,14.36488031,167.78,167.65,14.36488031]
[1730428104207,14.36488031,167.78,167.69,2.9857]
[1730428104707,2.9846,167.76,167.69,2.9857]
[1730428105413,2.9846,167.75,167.69,2.9857]
[1730428106903,3.9289,167.79,167.69,4.16]
[1730428107511,2.9844,167.76,167.69,7.1455]
[1730428108110,3.9289,167.79,167.69,4.16]
[1730428108306,2.9843,167.77,167.7,2.9855]
[1730428109712,6.9129,167.79,167.71,2.9853]
[1730428109915,3.9289,167.79,167.71,2.9853]
[1730428111419,2.9841,167.78,167.71,2.9853]
[1730428112216,2.9841,167.78,167.69,4.16]
[1730428112217,3.9289,167.79,167.69,4.16]
[1730428114222,2.9843,167.77,167.7,2.9854]
[1730428114612,3.9289,167.79,167.69,4.16]
[1730428114820,2.985,167.73,167.67,2.986]
[1730428115121,14.36488031,167.77,167.66,4.16]
[1730428115723,2.9843,167.77,167.7,2.9855]
[1730428116030,18.29378031,167.79,167.68,14.36488031]
[1730428116525,2.9842,167.78,167.71,2.9853]
[1730428117020,18.29378031,167.79,167.68,14.36488031]
[1730428117223,2.9843,167.77,167.7,2.9855]
[1730428122228,2.9843,167.77,167.68,14.36488031]
[1730428122422,2.9843,167.77,167.71,2.9853]
[1730428124429,2.9843,167.77,167.68,14.36488031]
[1730428124628,2.9843,167.77,167.7,2.9855]
[1730428125832,18.29378031,167.79,167.68,14.36488031]
[1730428126131,2.9847,167.75,167.68,2.9858]
[1730428126518,9.17255414,167.74,167.68,9.17255414]
[1730428127626,9.17255414,167.76,167.7,9.17255414]
[1730428129332,9.17255414,167.77,167.72,9.17255414]
[1730428129627,3.9289,167.79,167.73,9.17255414]
[1730428129628,1.3478,167.79,167.73,9.17255414]
[1730428129834,9.17255414,167.8,167.73,9.17255414]
[1730428130030,9.17255414,167.8,167.75,12.15705414]
[1730428130533,2.983,167.84,167.77,2.9842]
[1730428130725,18.37604265,167.85,167.73,18.27664265]
[1730428131627,2.9835,167.82,167.75,2.9846]
[1730428132027,14.33484265,167.82,167.71,4.14]
[1730428132227,14.33484265,167.8,167.72,2.9851]
[1730428133131,2.984,167.79,167.72,2.9851]
[1730428135232,14.33484265,167.83,167.71,18.47484265]
[1730428135835,2.9837,167.8,167.73,2.9849]
[1730428136437,18.37604265,167.85,167.76,14.33484265]
[1730428137137,2.9832,167.84,167.76,17.31914265]
[1730428137343,14.33484265,167.83,167.72,18.47484265]
[1730428137636,14.33484265,167.83,167.72,4.14]
[1730428138142,2.9835,167.81,167.73,2.9848]
[1730428138336,2.9835,167.81,167.72,4.14]
[1730428138734,14.33484265,167.83,167.73,2.985]
[1730428138735,2.9838,167.8,167.73,2.985]
[1730428140038,2.9836,167.81,167.73,2.985]
[1730428140236,14.33484265,167.83,167.72,18.47484265]
[1730428140836,14.33484265,167.83,167.74,2.9848]
[1730428141038,14.33484265,167.83,167.72,18.47484265]
[1730428141454,14.33484265,167.83,167.73,2.9848]
[1730428141746,14.33484265,167.83,167.72,18.47484265]
[1730428142445,2.9834,167.82,167.75,2.9845]
[1730428143640,2.9834,167.82,167.72,18.47484265]
[1730428143641,2.9835,167.81,167.74,2.9847]
[1730428144646,17.31814265,167.83,167.75,2.9846]
[1730428146234,2.983,167.84,167.76,2.9844]
[1730428146434,18.37604265,167.85,167.75,14.33484265]
[1730428146645,21.35894265,167.85,167.78,2.984]
[1730428146844,4.0412,167.85,167.75,14.33484265]
[1730428147044,18.47484265,167.88,167.75,14.33484265]
[1730428147045,14.33484265,167.88,167.76,2.5746]
[1730428147250,14.33484265,167.88,167.76,3.8788]
[1730428147545,2.9825,167.87,167.79,2.9838]
[1730428148049,14.33484265,167.88,167.79,2.9838]
[1730428148347,8.1271,167.91,167.78,4.14]
[1730428148348,2.9833,167.83,167.78,4.14]
[1730428148950,17.31764265,167.85,167.78,7.124]
[1730428150050,2.9827,167.86,167.78,4.14]
[1730428150451,9.17149842,167.84,167.78,13.31149842]
[1730428151149,9.17149842,167.83,167.78,4.14]
[1730428152951,9.17149842,167.8,167.75,2.9845]
[1730428153953,9.17149842,167.8,167.74,13.29149842]
[1730428154154,9.17149842,167.8,167.74,16.27629842]
[1730428154350,9.17149842,167.78,167.72,9.17149842]
[1730428154655,4.12,167.84,167.71,13.29149842]
[1730428154656,9.17149842,167.77,167.71,13.29149842]
[1730428155251,9.17149842,167.77,167.71,16.27669842]
[1730428155446,9.17149842,167.78,167.72,9.17149842]
[1730428155755,9.17149842,167.81,167.75,9.17149842]
[1730428156150,9.17149842,167.81,167.75,12.15599842]
[1730428156552,1.2917,167.83,167.75,2.9845]
[1730428156754,2.9835,167.82,167.75,2.9845]
[1730428157858,2.9835,167.81,167.75,2.9845]
[1730428158657,2.9835,167.81,167.71,5.4773]
[1730428158853,2.9835,167.81,167.74,2.9848]
[1730428159768,16.93411143,167.82,167.75,2.9846]
[1730428159952,16.93411143,167.82,167.73,4.12]
[1730428161265,2.9836,167.81,167.74,2.9848]
[1730428161455,2.9836,167.81,167.73,4.12]
[1730428162365,5.5816,167.82,167.75,2.9845]
[1730428162561,16.93411143,167.82,167.75,2.9845]
[1730428163459,2.5982,167.82,167.75,2.9845]
[1730428164061,2.5982,167.82,167.71,1.3573]
[1730428164062,16.93411143,167.82,167.74,4.12]
[1730428164257,2.5982,167.82,167.74,4.12]
[1730428164463,1.3144,167.82,167.74,4.12]
[1730428164664,1.2917,167.83,167.74,4.12]
[1730428164968,17.31911143,167.84,167.77,2.9841]
[1730428165262,14.33591143,167.87,167.75,14.33591143]
[1730428165452,17.31841143,167.87,167.8,2.9836]
[1730428165653,14.33591143,167.87,167.8,2.9836]
[1730428165861,14.33591143,167.87,167.75,14.33591143]
[1730428166564,2.6379,167.88,167.78,14.33591143]
[1730428167659,2.9825,167.87,167.8,2.9836]
[1730428170564,4.3518,167.88,167.81,2.9834]
[1730428170763,1.3694,167.88,167.81,2.9834]
[1730428170964,1.3694,167.88,167.78,14.33591143]
[1730428171168,4.3518,167.88,167.82,2.9833]
[1730428171359,4.3518,167.88,167.8,4.12]
[1730428171360,1.3694,167.88,167.8,4.12]
[1730428171566,1.2492,167.91,167.8,18.45591143]
[1730428171967,1.2492,167.91,167.8,19.81741143]
[1730428172365,1.2492,167.91,167.84,2.983]
[1730428172969,2.9819,167.91,167.84,2.983]
[1730428173170,14.33591143,167.92,167.82,4.12]
[1730428173370,14.33591143,167.92,167.83,2.9832]
[1730428173569,2.982,167.9,167.83,2.9832]
[1730428173971,2.5473,167.93,167.85,2.9827]
[1730428174167,2.5473,167.93,167.83,14.33591143]
[1730428174363,1.2593,167.93,167.85,14.33591143]
[1730428175174,1.2593,167.93,167.86,2.9825]
[1730428175378,1.2593,167.93,167.85,14.33591143]
[1730428176082,1.2593,167.93,167.86,2.9825]
[1730428176274,1.2593,167.93,167.85,14.33591143]
[1730428177179,2.9811,167.95,167.88,2.9822]
[1730428177379,14.33591143,167.96,167.85,14.33591143]
[1730428177671,1.3032,167.97,167.88,14.33591143]
[1730428177871,1.3032,167.97,167.88,18.45591143]
[1730428179368,4.2839,167.97,167.9,2.9819]
[1730428179579,4.2839,167.97,167.88,18.45591143]
[1730428179775,4.2839,167.97,167.9,2.9819]
[1730428179987,2.5889,167.99,167.88,18.45591143]
[1730428180276,14.33591143,168.01,167.88,18.45591143]
[1730428181484,2.9807,167.97,167.89,2.9819]
[1730428184680,14.33591143,168.01,167.88,18.45591143]
[1730428184879,2.9807,167.97,167.9,17.31781143]
[1730428185272,2.9807,167.97,167.9,14.33591143]
[1730428185879,14.33591143,168.01,167.88,4.12]
[1730428186081,14.33591143,167.98,167.88,7.1023]
[1730428186282,14.33591143,167.98,167.88,4.12]
[1730428186489,2.981,167.95,167.88,4.12]
[1730428187184,14.33591143,167.98,167.87,15.66911143]
[1730428187382,1.3705,167.97,167.88,4.1]
[1730428187789,2.9811,167.95,167.88,4.1]
[1730428188491,2.9811,167.95,167.88,7.0823]
[1730428189191,1.3705,167.97,167.87,18.65161143]
[1730428189398,14.33591143,167.96,167.87,4.1]
[1730428189590,2.5062,167.95,167.87,4.1]
[1730428189887,2.9817,167.92,167.87,4.1]
[1730428190093,2.5062,167.95,167.87,4.1]
[1730428190282,2.9821,167.89,167.83,14.33591143]
[1730428190484,2.9821,167.89,167.84,13.26603319]
[1730428191189,9.16603319,167.93,167.87,9.16603319]
[1730428191392,9.16603319,167.94,167.88,9.16603319]
[1730428192389,2.9817,167.92,167.88,9.16603319]
[1730428192591,2.9817,167.92,167.85,14.31517611]
[1730428193197,2.9818,167.91,167.84,4.1]
[1730428193489,14.31517611,167.94,167.84,4.1]
[1730428193793,14.31517611,167.94,167.81,4.1]
[1730428193794,14.31517611,167.9,167.81,4.1]
[1730428194093,1.2434,167.89,167.81,4.1]
[1730428194494,1.3236,167.88,167.81,4.1]
[1730428194893,2.9827,167.86,167.81,4.1]
[1730428195287,1.3236,167.88,167.81,4.1]
[1730428195493,4.306,167.88,167.81,7.0835]
[1730428195695,1.3236,167.88,167.81,4.1]
[1730428197697,14.31517611,167.87,167.77,4.1]
[1730428197895,14.31517611,167.85,167.77,4.1]
[1730428198396,2.5815,167.88,167.77,4.1]
[1730428198397,14.31517611,167.87,167.77,4.1]
[1730428199604,2.983,167.85,167.78,2.9839]
[1730428199793,14.31517611,167.87,167.77,4.1]
[1730428200200,2.9832,167.83,167.77,7.0842]
[1730428200395,14.31517611,167.85,167.73,14.31517611]
[1730428200594,14.31517611,167.85,167.74,4.1]
[1730428200805,2.9833,167.83,167.75,2.9844]
[1730428200989,14.31517611,167.85,167.75,2.9844]
[1730428201298,14.31517611,167.85,167.74,4.1]
[1730428201711,14.31517611,167.85,167.73,17.30007611]
[1730428201907,14.31517611,167.82,167.73,4.1]
[1730428202710,2.9841,167.78,167.73,4.1]
[1730428202903,2.9841,167.78,167.71,14.31517611]
[1730428203114,2.9841,167.78,167.7,4.1]
[1730428203411,2.9839,167.8,167.71,2.9851]
[1730428203603,3.9776,167.81,167.7,18.41517611]
[1730428204010,6.9613,167.81,167.73,2.9848]
[1730428204219,14.31517611,167.85,167.73,14.31517611]
[1730428204612,14.31517611,167.85,167.74,1.3623]
[1730428205216,2.9834,167.82,167.74,4.3469]
[1730428205410,2.9834,167.82,167.74,1.3623]
[1730428206314,2.9834,167.82,167.75,2.9846]
[1730428207821,2.9836,167.81,167.74,2.9848]
[1730428208118,14.31517611,167.82,167.73,4.1]
[1730428208321,2.9836,167.81,167.74,2.9848]
[1730428208709,14.31517611,167.85,167.73,18.41517611]
[1730428209618,2.9835,167.82,167.75,2.9844]
[1730428210007,14.31517611,167.85,167.73,18.41517611]
[1730428210211,14.31517611,167.8,167.71,1.49244364]
[1730428210515,1.3436,167.79,167.69,1.2433]
[1730428210713,2.9844,167.76,167.69,4.2289]
[1730428211315,4.0452,167.79,167.69,1.2433]
[1730428211512,4.0452,167.79,167.71,2.9852]
[1730428211714,4.0452,167.79,167.69,1.2433]
[1730428211908,2.9841,167.78,167.71,2.9852]
[1730428212111,2.6839,167.79,167.71,14.31517611]
[1730428212511,4.1,167.81,167.75,2.9846]
[1730428212820,14.31517611,167.82,167.71,14.31517611]
[1730428213009,2.9841,167.78,167.71,2.9853]
[1730428213211,14.31517611,167.8,167.69,15.55847611]
[1730428213610,6.8539,167.81,167.71,14.31517611]
[1730428214120,6.8539,167.81,167.73,2.9848]
[1730428214514,2.984,167.79,167.71,14.31517611]
[1730428214827,2.984,167.79,167.72,2.985]
[1730428215115,2.9844,167.77,167.69,21.55248084]
[1730428215310,14.31517611,167.8,167.7,1.49259185]
[1730428215510,14.31517611,167.8,167.69,15.55847611]
[1730428215715,2.9843,167.77,167.69,15.55847611]
[1730428216311,2.9843,167.77,167.69,19.63847611]
[1730428216613,14.31517611,167.8,167.69,5.3233]
[1730428216919,14.31517611,167.77,167.68,4.08]
[1730428217213,2.9848,167.75,167.68,7.0657]
[1730428217418,2.9848,167.75,167.67,4.08]
[1730428218320,2.9848,167.75,167.69,2.9856]
[1730428219617,2.9848,167.75,167.67,4.08]
[1730428219820,2.9851,167.73,167.65,4.08]
[1730428221219,2.9851,167.73,167.66,2.9861]
[1730428222916,2.9851,167.73,167.65,4.08]
[1730428223226,2.9851,167.73,167.67,2.986]
[1730428223419,14.31517611,167.75,167.67,2.986]
[1730428223924,2.9851,167.72,167.65,4.08]
[1730428224126,4.0292,167.74,167.65,4.08]
[1730428224517,2.9853,167.71,167.65,4.08]
[1730428225019,2.9853,167.71,167.64,2.9865]
[1730428225218,4.0292,167.74,167.63,4.08]
[1730428225422,4.0292,167.74,167.64,14.31517611]
[1730428225814,2.985,167.73,167.66,2.9862]
[1730428226424,2.9852,167.72,167.66,2.9862]
[1730428226626,4.0292,167.74,167.64,2.9865]
[1730428226818,4.0292,167.74,167.63,4.08]
[1730428227125,2.9852,167.72,167.63,4.08]
[1730428227927,2.9853,167.71,167.64,2.9865]
[1730428229823,14.31517611,167.72,167.63,4.08]
[1730428230424,2.9855,167.71,167.64,2.9865]
[1730428230629,14.31517611,167.72,167.64,2.9865]
[1730428230927,14.31517611,167.72,167.6,1.49333119]
[1730428230928,14.31517611,167.7,167.58,14.31517611]
[1730428231230,2.9859,167.68,167.61,2.9869]
[1730428231729,2.9859,167.68,167.59,4.08]
[1730428232634,9.17930908,167.68,167.62,9.17930908]
[1730428232830,9.17930908,167.71,167.65,9.17930908]
[1730428233430,9.17930908,167.71,167.59,4.08]
[1730428233630,9.17930908,167.69,167.65,2.9863]
[1730428234329,9.17930908,167.71,167.65,12.16560908]
[1730428235130,9.17930908,167.7,167.65,12.16560908]
[1730428235331,9.17930908,167.7,167.65,2.9863]
[1730428236437,14.34202464,167.71,167.63,2.9866]
[1730428236627,14.34202464,167.71,167.59,18.42202464]
[1730428236835,2.986,167.68,167.61,2.9871]
[1730428237032,14.34202464,167.68,167.58,1.49345627]
[1730428237339,14.34202464,167.66,167.57,6.7675]
[1730428237544,14.34202464,167.66,167.54,18.42202464]
[1730428237935,2.9868,167.63,167.56,2.9879]
[1730428238531,5.6157,167.67,167.6,2.9872]
[1730428241242,14.34202464,167.66,167.58,1.3061]
[1730428241446,15.69522464,167.66,167.56,4.08]
[1730428242147,2.6295,167.67,167.57,14.34202464]
[1730428242737,5.6155,167.67,167.6,2.9871]
[1730428244538,5.6155,167.67,167.6,2.9873]
[1730428244942,5.6155,167.67,167.57,14.34202464]
[1730428245144,5.6155,167.67,167.6,2.9871]
[1730428246050,5.6155,167.67,167.57,14.34202464]
[1730428246347,2.6295,167.67,167.57,14.34202464]
[1730428246555,16.93922464,167.71,167.59,14.34202464]
[1730428246848,16.93922464,167.71,167.64,2.9864]
[1730428247040,16.93922464,167.71,167.6,3.8409]
[1730428247237,1.244,167.71,167.61,14.34202464]
[1730428247446,18.42202464,167.74,167.62,4.08]
[1730428247944,2.985,167.73,167.62,4.08]
[1730428248544,18.42202464,167.74,167.62,4.08]
[1730428248739,21.40702464,167.74,167.64,14.34202464]
[1730428249149,17.32702464,167.74,167.67,2.986]
[1730428249342,14.34202464,167.74,167.64,14.34202464]
[1730428249543,2.9851,167.73,167.62,4.08]
[1730428250258,14.34202464,167.74,167.62,4.08]
[1730428250442,2.9856,167.7,167.61,4.08]
[1730428251147,2.9857,167.69,167.61,4.08]
[1730428251352,14.34202464,167.69,167.61,4.08]
[1730428252248,7.09447395,167.72,167.57,4.08]
[1730428252249,14.34202464,167.66,167.57,4.08]
[1730428253251,2.9867,167.64,167.57,7.0676]
[1730428254053,14.34202464,167.66,167.57,4.08]
[1730428254546,1.3673,167.67,167.57,4.08]
[1730428254752,4.3535,167.67,167.6,2.9872]
[1730428255056,14.34202464,167.66,167.57,4.08]
[1730428255446,15.71062464,167.66,167.57,4.08]
[1730428256247,15.71062464,167.66,167.57,7.0677]
[1730428256451,15.71062464,167.66,167.57,4.08]
[1730428257351,2.9864,167.65,167.58,2.9876]
[1730428258851,18.69682464,167.66,167.59,2.9874]
[1730428260346,15.71062464,167.66,167.57,4.08]
[1730428260546,2.9864,167.65,167.58,2.9876]
[1730428260754,1.3686,167.66,167.57,4.08]
[1730428261150,1.3686,167.66,167.6,2.9873]
[1730428261657,2.9864,167.65,167.58,2.9875]
[1730428261958,14.34202464,167.64,167.55,4.08]
[1730428262353,14.34202464,167.64,167.54,2.9882]
[1730428262653,14.34202464,167.64,167.53,4.08]
[1730428263051,2.9871,167.62,167.55,2.9881]
[1730428263454,14.34202464,167.62,167.53,4.08]
[1730428263853,2.9871,167.61,167.54,2.9882]
[1730428264554,2.9866,167.65,167.54,14.34202464]
[1730428265056,2.9866,167.65,167.58,2.9876]
[1730428265652,2.9866,167.64,167.57,2.9878]
[1730428268555,14.34202464,167.64,167.54,14.34202464]
[1730428268857,1.3686,167.66,167.54,14.34202464]
[1730428268858,14.34202464,167.62,167.54,4.08]
[1730428270256,17.32912464,167.62,167.56,2.988]
[1730428270461,17.32912464,167.62,167.54,4.08]
[1730428270659,14.34202464,167.62,167.54,4.08]
[1730428270861,2.9871,167.61,167.55,2.9881]
[1730428271563,2.9875,167.59,167.52,2.9885]
[1730428271761,15.66762464,167.6,167.51,4.06]
[1730428272057,15.66762464,167.6,167.5,6.7525]
[1730428272260,1.2815,167.59,167.5,6.7525]
[1730428272456,2.9876,167.58,167.51,2.9887]
[1730428272866,2.5566,167.59,167.5,4.06]
[1730428273062,5.5441,167.59,167.52,2.9887]
[1730428274268,2.9882,167.55,167.48,22.2684102]
[1730428274454,14.34202464,167.57,167.48,23.3391102]
[1730428275463,14.34202464,167.55,167.47,4.06]
[1730428276656,14.34202464,167.53,167.44,4.06]
[1730428276869,14.34202464,167.53,167.47,2.9896]
[1730428277160,14.34202464,167.53,167.44,18.40202464]
[1730428277359,14.34202464,167.55,167.44,18.40202464]
[1730428277668,14.34202464,167.53,167.44,18.40202464]
[1730428277858,14.34202464,167.53,167.44,4.06]
[1730428278055,14.34202464,167.53,167.43,4.06]
[1730428278267,1.3006,167.52,167.43,4.06]
[1730428278458,3.914,167.52,167.43,4.06]
[1730428278765,3.914,167.52,167.43,18.40202464]
[1730428278960,14.34202464,167.55,167.43,18.40202464]
[1730428279362,17.33022464,167.55,167.47,2.9895]
[1730428282867,14.34202464,167.53,167.47,2.9895]
[1730428283669,3.914,167.56,167.5,2.9889]
[1730428285670,17.32932464,167.6,167.53,2.9885]
[1730428286171,14.34202464,167.6,167.53,2.9885]
[1730428286464,17.32932464,167.6,167.53,2.9884]
[1730428286672,14.34202464,167.6,167.51,14.34202464]
[1730428287271,14.34202464,167.6,167.55,2.9881]
[1730428288362,14.34202464,167.6,167.51,14.34202464]
[1730428288671,14.34202464,167.58,167.49,6.7134]
[1730428288969,14.34202464,167.55,167.46,4.06]
[1730428289276,17.33032464,167.55,167.48,2.9894]
[1730428289471,14.34202464,167.55,167.48,2.9894]
[1730428290275,2.9886,167.53,167.47,2.9896]
[1730428290575,14.34202464,167.53,167.43,4.06]
[1730428290762,1.352,167.52,167.43,4.06]
[1730428291166,2.989,167.51,167.45,2.99]
[1730428292074,2.9891,167.5,167.43,2.9903]
[1730428292265,17.02732464,167.51,167.43,4.06]
[1730428295172,2.9893,167.49,167.43,4.06]
[1730428295378,17.02732464,167.51,167.43,4.06]
[1730428296084,17.02732464,167.51,167.41,4.06]
[1730428296583,2.9891,167.5,167.43,2.9902]
[1730428297676,17.02732464,167.51,167.41,4.06]
[1730428297677,2.6853,167.51,167.41,4.06]
[1730428297881,2.6853,167.51,167.42,14.34202464]
[1730428298076,2.6853,167.51,167.45,2.9898]
[1730428298676,14.34202464,167.49,167.41,4.06]
[1730428298881,2.9896,167.48,167.41,7.0505]
[1730428299781,2.9896,167.48,167.42,2.9905]
[1730428301182,20.01622464,167.51,167.44,2.99]
[1730428302279,4.3407,167.52,167.41,4.06]
[1730428303283,1.352,167.52,167.45,2.9898]
[1730428303485,2.9889,167.51,167.45,2.9898]
[1730428303878,2.5144,167.57,167.48,2.9893]
[1730428303879,17.33022464,167.55,167.48,2.9893]
[1730428304078,14.34202464,167.55,167.45,14.34202464]
[1730428304583,1.325,167.56,167.51,2.9888]
[1730428304789,2.5144,167.57,167.51,2.9888]
[1730428305485,1.2473,167.57,167.48,6.5345]
[1730428306076,17.32932464,167.6,167.53,2.9885]
[1730428306272,17.32932464,167.6,167.48,6.5345]
[1730428306273,14.34202464,167.6,167.5,14.34202464]
[1730428306484,4.04,167.61,167.5,14.34202464]
[1730428307082,15.61202464,167.62,167.5,14.34202464]
[1730428307280,15.61202464,167.62,167.52,14.34202464]
[1730428308185,1.2517,167.64,167.56,2.9879]
[1730428308385,1.2517,167.64,167.55,4.04]
[1730428310080,15.66702464,167.65,167.55,4.04]
[1730428310785,18.65362464,167.65,167.58,2.9876]
[1730428311679,2.9862,167.66,167.59,2.9873]
[1730428313386,18.38202464,167.68,167.57,14.34202464]
[1730428313687,2.9866,167.64,167.58,2.9876]
[1730428314286,1.2644,167.69,167.59,14.34202464]
[1730428314888,4.2501,167.69,167.59,14.34202464]
[1730428315290,4.2501,167.69,167.62,2.9869]
[1730428315588,1.2644,167.69,167.61,14.34202464]
[1730428315790,14.34202464,167.75,167.67,2.986]
[1730428316097,14.34202464,167.75,167.64,14.34202464]
[1730428316098,2.9857,167.7,167.64,14.34202464]
[1730428316291,2.9857,167.7,167.61,18.38202464]
[1730428317496,2.9851,167.73,167.63,14.34202464]
[1730428317696,1.273,167.75,167.66,14.34202464]
[1730428317902,2.9848,167.74,167.67,2.9859]
[1730428318093,2.9848,167.74,167.67,7.0259]
[1730428318599,2.985,167.73,167.67,7.0259]
[1730428320296,2.9854,167.71,167.65,4.04]
[1730428320695,14.34202464,167.74,167.65,4.04]
[1730428320894,14.34202464,167.71,167.6,14.34202464]
[1730428321198,14.34202464,167.71,167.61,4.04]
[1730428321794,2.986,167.68,167.61,7.0271]
[1730428322699,14.34202464,167.71,167.61,4.04]
[1730428323299,2.9858,167.69,167.62,2.9869]
[1730428323599,14.34202464,167.71,167.61,4.04]
[1730428323798,4.04,167.73,167.61,4.04]
[1730428324307,14.34202464,167.72,167.61,4.04]
[1730428324507,2.9858,167.69,167.62,2.9869]
[1730428324802,14.34202464,167.72,167.61,4.04]
[1730428324996,14.34202464,167.69,167.58,14.34202464]
[1730428325196,4.04,167.73,167.58,14.34202464]
[1730428325197,14.34202464,167.67,167.58,4.04]
[1730428325595,1.3629,167.66,167.58,4.04]
[1730428325904,14.34202464,167.65,167.58,4.04]
[1730428326106,14.34202464,167.65,167.53,18.32742464]
[1730428326107,14.34202464,167.65,167.54,4.04]
[1730428326397,3.9597,167.66,167.55,14.34202464]
[1730428327402,2.9866,167.64,167.58,2.9876]
[1730428330704,14.34202464,167.64,167.54,4.04]
[1730428330904,14.34202464,167.62,167.51,14.34202464]
[1730428331209,14.34202464,167.59,167.5,4.02]
[1730428331511,14.34202464,167.62,167.5,18.36202464]
[1730428332401,2.9875,167.59,167.53,2.9885]
[1730428332811,2.9875,167.59,167.5,18.36202464]
[1730428333603,14.34202464,167.62,167.5,18.36202464]
[1730428333908,2.988,167.57,167.5,4.02]
[1730428334107,14.34202464,167.57,167.48,4.02]
[1730428335308,2.9884,167.54,167.48,4.02]
[1730428336103,2.9884,167.54,167.47,10.9326]
[1730428336700,2.9882,167.55,167.48,2.9894]
[1730428340210,14.34202464,167.57,167.48,14.34202464]
[1730428340513,14.34202464,167.57,167.47,6.696]
[1730428340909,3.8184,167.58,167.48,14.34202464]
[1730428341212,3.8184,167.58,167.5,14.34202464]
[1730428341410,3.8184,167.58,167.52,2.9887]
[1730428342004,1.2798,167.58,167.53,2.9884]
[1730428342406,1.2798,167.58,167.55,2.9882]
[1730428342811,17.32932464,167.6,167.5,14.34202464]
[1730428343018,17.32932464,167.6,167.53,2.9885]
[1730428343212,2.9873,167.6,167.53,2.9885]
[1730428343412,2.9873,167.6,167.5,14.34202464]
[1730428343612,2.9873,167.6,167.54,2.9883]
[1730428344114,14.34202464,167.62,167.53,14.34202464]
[1730428344321,14.34202464,167.65,167.53,18.36202464]
[1730428344619,14.34202464,167.62,167.53,4.02]
[1730428344920,1.2533,167.61,167.53,4.02]
[1730428345818,2.9873,167.6,167.54,2.9882]
[1730428348212,2.9871,167.62,167.56,2.9879]
[1730428350718,15.70832464,167.65,167.56,2.9879]
[1730428350916,2.9871,167.61,167.55,2.9881]
[1730428351118,14.34202464,167.6,167.51,4.02]
[1730428351419,14.34202464,167.6,167.49,7.0091]
[1730428351720,14.34202464,167.6,167.49,4.02]
[1730428351721,14.34202464,167.57,167.49,4.02]
[1730428352115,1.3687,167.56,167.49,4.02]
[1730428352511,2.9885,167.54,167.49,4.02]
[1730428352716,1.3687,167.56,167.49,4.02]
[1730428353424,1.3687,167.56,167.49,7.0092]
[1730428354112,1.3687,167.56,167.5,2.9889]
[1730428356322,2.9882,167.55,167.49,7.0092]
[1730428358026,2.9882,167.55,167.5,2.989]
[1730428358222,4.3567,167.56,167.5,2.989]